Cogmind - Beta 16 @@@ ROGUE MODE // 2025.10.22 @ 22:43:30 Player: WetterLettuce Result: Destroyed by S-27 Virus with Autogun Performance ------------- Evolutions (4) 2000 Regions Visited (5) 1000 Robots Destroyed (32) 160 Value Destroyed (884) 884 Prototype IDs (3) 60 Alien Tech Used (0) 0 Bonus (300) 300 TOTAL SCORE: 4404 Bonus ------- Registered with UFD 300 Cogmind --------- Core Integrity 0/850 Matter 185/300 Energy 34/100 System Corruption 0% Temperature Cool (9) Movement Core (50) Location -6/Factory Parts ------- > --- POWER (1) -------- (None) > --- PROPULSION (3) --- (None) > --- UTILITY (8) ------ Surveybot 17 Chip Core Analyzer Core Analyzer Hacking Suite Improved System Shield > --- WEAPON (3) ------- (None) > --- INVENTORY (5) ---- Makeshift Light Armor Plating Mapping Drone Bay (3/3) Multitool DRS Beacon (Ready) Peak State ------------ > --- POWER ------------ Improved Deuterium Engine > --- PROPULSION ------- Light Treads Light Treads Spiked Treads > --- UTILITY ---------- Large Storage Unit Advanced Sensor Array Core Analyzer Layered Light Armor Plating Layered Light Armor Plating Hacking Suite Makeshift System Shield Improved System Shield > --- WEAPON ----------- Heavy Laser Battle Rifle Heavy Machine Gun > --- INVENTORY -------- Light Angular Momentum Engine Fusion Compressor Wheel Armored Huge Wheel Advanced Heat Sink Surveybot 17 Chip Core Analyzer Makeshift Light Armor Plating Layered Light Armor Plating Mapping Drone Bay Grenade Launcher Multitool Makeshift Sword DRS Beacon [Rating: 55] Favorites ----------- Power Deuterium Engine Engine Deuterium Engine Propulsion Spiked Treads Treads Spiked Treads Leg Aluminum Leg Wheel Wheel Utility Hacking Suite Device Advanced Sensor Array Storage Medium Storage Unit Processor Core Analyzer Hackware Hacking Suite Protection Layered Light Armor Plating Weapon Battle Rifle Energy Gun Heavy Laser Ballistic Gun Battle Rifle Launcher Grenade Launcher Slashing Weapon Makeshift Sword Build | -11 -10 -10 -10 -9 -6 ------- Run | Yrd Mat Min Sub Scr Fac Slots Evolved 8 | . . . . . 8 Power . | . . . . . . Propulsion 1 | . . . . . 1 Utility 6 | . . . . . 6 Weapon 1 | . . . . . 1 Parts Attached 47 | 6 4 1 7 6 23 Power 6 | 1 1 1 1 1 1 Engine 6 | 1 1 1 1 1 1 Core . | . . . . . . Reactor . | . . . . . . Propulsion 10 | 2 1 . 2 3 2 Treads 5 | . . . 2 2 1 Leg 3 | 2 1 . . . . Wheel 2 | . . . . 1 1 Hover . | . . . . . . Flight . | . . . . . . Utility 21 | 1 2 . . 2 16 Device 3 | . . . . . 3 Storage 4 | 1 1 . . 2 . Processor 5 | . . . . . 5 Hackware 3 | . 1 . . . 2 Protection 6 | . . . . . 6 Artifact . | . . . . . . Weapon 10 | 2 . . 4 . 4 Energy Gun 1 | . . . . . 1 Energy Cannon . | . . . . . . Ballistic Gun 7 | 2 . . 3 . 2 Ballistic Cannon . | . . . . . . Launcher 1 | . . . 1 . . Special Weapon . | . . . . . . Impact Weapon . | . . . . . . Slashing Weapon 1 | . . . . . 1 Piercing Weapon . | . . . . . . Special Melee Weapon . | . . . . . . Unidentified Prototypes . | . . . . . . Parts Lost 21 | . 1 1 3 . 16 Power 4 | . 1 1 1 . 1 Propulsion 3 | . . . 1 . 2 Utility 6 | . . . . . 6 Weapon 8 | . . . 1 . 7 Highest Loss Streak 14 | . 1 1 1 . 14 To Critical Strikes 1 | . . . 1 . . Average Backups 10 | . 6 9 9 11 10 Power . | . . . . . 2 Propulsion 1 | . 1 2 1 1 . Utility 4 | . 2 4 4 5 4 Weapon 3 | . 2 3 3 3 2 Tool/Special . | . . . . . . Unused Backups 16 | . . 1 7 3 5 Power 3 | . . . . . 3 Propulsion 3 | . . . 2 1 . Utility 7 | . . . 4 2 1 Weapon 2 | . . 1 1 . . Tool/Special 1 | . . . . . 1 Average Slot Usage (%) 98 | . 98 96 98 99 89 Engine 12 | . 13 11 12 14 5 Treads 18 | . . . 21 26 17 Leg 7 | . 28 28 6 . . Storage 13 | . 14 14 14 14 5 Hackware 14 | . 13 14 14 14 17 Protection 1 | . . . . . 13 Ballistic Gun 26 | . 27 28 27 28 13 Peak Build Rating 55 | 6 10 10 16 20 55 Average Rating 17 | 4 9 9 14 18 45 On Entrance 10 | . 6 10 10 16 19 Avg Prop Armor Cover (%) 10 | . . . 7 11 . Naked Turns . | . . . . . . Heaviest Build 50 | 12 17 17 18 34 50 Greatest Support 60 | 20 20 20 40 40 60 Greatest Overweight (x) 4 | 1 4 . . 3 1 Average Overweight (x) . | . . . . . . Largest Inventory Capacity 15 | 8 10 10 10 15 15 Average Capacity 11 | 7 9 10 10 12 14 Most Carried 15 | 2 10 10 10 15 15 Average Carried 10 | . 6 9 9 12 11 Final Capacity 15 | 8 10 10 10 15 5 Final Carried 15 | 2 10 10 10 15 4 Class Distribution -------------------- 66% | Derelict-Mutant 27% | Mutant 3% | Derelict-Tank Dominant Class ---------------- Mutant | -10/Materials Mutant | -10/Mines Derelict-Mutant | -10/Subcaves Derelict-Mutant | -9/Scraptown Derelict-Tank | -6/Factory Resources | -11 -10 -10 -10 -9 -6 ----------- Run | Yrd Mat Min Sub Scr Fac Matter Collected 1212 | 220 194 170 328 20 280 Remotely . | . . . . . . Salvage Created 1163 | . 255 124 347 . 437 Parts 78 | . 18 15 29 . 16 Haulers Intercepted . | . . . . . . Recyclers Shooed . | . . . . . . Parts Field Recycled . | . . . . . . Retrieved Matter . | . . . . . . Parts Self-Destructed 18 | . . . 18 . . Prevented . | . . . . . . Parts Restored . | . . . . . . Kills | -11 -10 -10 -10 -9 -6 ------- Run | Yrd Mat Min Sub Scr Fac Combat Hostiles Destroyed 24 | . 6 3 10 . 5 Guns 21 | . 6 3 7 . 5 AOE 3 | . . . 3 . . Classes Destroyed 9 | . 4 2 2 . 1 Builder 2 | . . 2 . . . Tunneler 2 | . . 2 . . . Recycler 1 | . . . . . 1 Operator 1 | . 1 . . . . Watcher 2 | . 2 . . . . Swarmer 9 | . 2 3 3 . 1 Grunt 9 | . 4 . 1 . 4 Sentry 1 | . . . 1 . . Subdweller 5 | . . . 5 . . Best Kill Streak 5 | . 5 3 3 . 3 Combat Bots Only 4 | . 4 3 3 . 2 Max Kills in Single Turn 2 | . 1 2 2 . 1 Gunslinging 1 | . . 1 . . . Exploded 2 | . . . 2 . . Melee . | . . . . . . Uniques/NPCs Destroyed . | . . . . . . Combat | -11 -10 -10 -10 -9 -6 -------- Run | Yrd Mat Min Sub Scr Fac Hostile Shots Fired 321 | . 46 10 56 . 209 Missed 80 | . 13 4 17 . 46 Hits 241 | . 33 6 39 . 163 Melee 17 | . . . . . 17 Projectile 224 | . 33 6 39 . 146 Critical Strikes 13 | . 1 . 1 . 11 Damage Taken 4156 | . 406 51 740 . 2959 Core 1080 | . 115 . 113 . 852 Absorbed by Shields . | . . . . . . Core Remaining (%) 54 | 100 . . . 8 . Volleys Fired 106 | . 28 11 36 . 31 Largest 3 | . 2 2 2 . 3 Hottest 124 | . 40 40 53 . 124 Shots Fired 212 | . 56 22 72 . 62 Gun 209 | . 56 22 70 . 61 Cannon . | . . . . . . Launcher 3 | . . . 2 . 1 Special . | . . . . . . Kinetic 198 | . 56 22 70 . 50 Thermal 11 | . . . . . 11 Explosive 3 | . . . 2 . 1 Electromagnetic . | . . . . . . Robot Hit Streak 15 | . 10 10 15 . 11 Robot Miss Streak 5 | . 4 2 4 . 5 Penetration Max . | . . . . . . Secondary Targets 4 | . 1 1 . . 2 Max Gunslinging Chain 1 | . 1 1 . . 1 Shots Hit Robots 142 | . 36 15 52 . 39 Core Hits 62 | . 15 7 15 . 25 Critical Kills 1 | . . . 1 . . Critical Parts Destroyed . | . . . . . . Critical Strikes 3 | . . . 1 . 2 Burn 1 | . . . . . 1 Destroy 1 | . . . 1 . . Sever 1 | . . . . . 1 Melee Attacks 2 | . . . . . 2 Impact . | . . . . . . Slashing 2 | . . . . . 2 Piercing . | . . . . . . Sneak Attacks . | . . . . . . Combat Hostiles . | . . . . . . Follow-up Attacks . | . . . . . . Damage Inflicted 2492 | . 463 180 955 . 894 Guns 2101 | . 463 180 783 . 675 Cannons . | . . . . . . Explosions 355 | . . . 172 . 183 Melee 36 | . . . . . 36 Ramming . | . . . . . . Kinetic 1990 | . 463 180 783 . 564 Thermal 111 | . . . . . 111 Explosive 355 | . . . 172 . 183 Electromagnetic . | . . . . . . Impact . | . . . . . . Slashing 36 | . . . . . 36 Piercing . | . . . . . . Highest Corruption . | . . . . . . Average Corruption . | . . . . . . Corruption Purged . | . . . . . . Corruption Blocked . | . . . . . . Overload Shots . | . . . . . . Overflow Damage . | . . . . . . Projectiles . | . . . . . . Explosions . | . . . . . . Melee . | . . . . . . Knockbacks . | . . . . . . Impact . | . . . . . . Kinetic . | . . . . . . Secondary . | . . . . . . Self-Inflicted Damage 51 | . . . 16 . 35 Shots 2 | . . . 1 . 1 Rammed . | . . . . . . Targets Rammed . | . . . . . . Kicked . | . . . . . . Crushed . | . . . . . . Highest Temperature 269 | . 20 . . . 269 Average Temperature 120 | . 5 . . . 140 Received Heat Transfer 802 | . 231 . 24 . 547 Siege Activations . | . . . . . . Martial Activations . | . . . . . . Shielding Activations . | . . . . . . Robots Disrupted . | . . . . . . Combat Hostiles . | . . . . . . Robots Corrupted . | . . . . . . Combat Hostiles . | . . . . . . Parts Fried . | . . . . . . Impact Corruptions . | . . . . . . Robots Melted . | . . . . . . Combat Hostiles . | . . . . . . Parts Melted 1 | . . . . . 1 Heat Transferred 296 | . . . . . 296 Parts Sabotaged . | . . . . . . Parts Stolen . | . . . . . . Parts Stripped . | . . . . . . Power Chain Reactions . | . . . . . . Alert | -11 -10 -10 -10 -9 -6 ------- Run | Yrd Mat Min Sub Scr Fac Maximum Alert Level . | . . . . . . Low Security (%) 100 | 100 100 100 . . 100 Level 1 . | . . . . . . Level 2 . | . . . . . . Level 3 . | . . . . . . Level 4 . | . . . . . . Level 5 . | . . . . . . High Security . | . . . . . . Max Security . | . . . . . . Peak Influence 82 | . 82 60 . . 45 Initial . | . . . . . . Average 10 | . 19 6 . . 6 Influence Increases 560 | . 187 94 110 . 169 Destroy 0b10 Robot/C 380 | . 120 60 100 . 100 Destroy 0b10 Robot/NC 40 | . 15 20 . . 5 Destroy Leader 74 | . 24 10 10 . 30 Successful Hack 17 | . 13 4 . . . Disable Machine 30 | . . . . . 30 Destroy Structure 4 | . . . . . 4 Lose Combat Pursuer 15 | . 15 . . . . Influence Decreases 560 | . 187 88 116 . 169 Entered New Map 4 | . . . 4 . . Time Decay 438 | . 177 78 92 . 91 Lost Part 118 | . 10 10 20 . 78 Squads Dispatched 1 | . 1 . . . . Investigation 1 | . 1 . . . . Extermination . | . . . . . . Reinforcement . | . . . . . . Assault . | . . . . . . Garrison . | . . . . . . Intercept . | . . . . . . Searches Triggered . | . . . . . . Construction Impeded . | . . . . . . Haulers Reinforced . | . . . . . . Active Scanning Responses . | . . . . . . Cargo Convoy Interrupts . | . . . . . . Stealth | -11 -10 -10 -10 -9 -6 --------- Run | Yrd Mat Min Sub Scr Fac Distress Signals 1 | . . . . . 1 Communications Jammed . | . . . . . . Distress Signals . | . . . . . . Times Spotted 45 | . 14 3 10 . 18 Peak Tracking Total 15 | . 5 3 3 . 15 Tactical Retreats 1 | . 1 . . . . Traps | -11 -10 -10 -10 -9 -6 ------- Run | Yrd Mat Min Sub Scr Fac Traps Triggered 5 | . 3 . 2 . . Indirectly . | . . . . . . Trap Hack Attempts . | . . . . . . Triggered . | . . . . . . Disarmed . | . . . . . . Reprogrammed . | . . . . . . Reused . | . . . . . . Traps Extracted . | . . . . . . Installed . | . . . . . . Triggered . | . . . . . . Machines | -11 -10 -10 -10 -9 -6 ---------- Run | Yrd Mat Min Sub Scr Fac Machines Disabled 2 | . . . . . 2 Max in Single Turn 1 | . . . . . 1 Machines Repaired . | . . . . . . Machines Dismantled . | . . . . . . Machines Sabotaged . | . . . . . . Overloaded Fab Kills . | . . . . . . Hacking | -11 -10 -10 -10 -9 -6 --------- Run | Yrd Mat Min Sub Scr Fac Machines Accessed 12 | . 7 1 . 4 . Terminals 8 | . 7 1 . . . Fabricators . | . . . . . . Repair Stations . | . . . . . . Recycling Units . | . . . . . . Scanalyzers . | . . . . . . Garrison Access . | . . . . . . Total Hacks 58 | . 25 3 . 30 . Successful 48 | . 15 3 . 30 . Failed 10 | . 10 . . . . Catastrophic 1 | . 1 . . . . Database Lockouts . | . . . . . . Manual 19 | . 18 1 . . . Terminals 28 | . 25 3 . . . Fabricators . | . . . . . . Repair Stations . | . . . . . . Recycling Units . | . . . . . . Scanalyzers . | . . . . . . Garrison Access . | . . . . . . Terminal Hacks 39 | . 7 2 . 30 . Record 30 | . . . . 30 . Prototype ID Bank 2 | . 2 . . . . Level Access Points 1 | . . 1 . . . Terminal Index 1 | . 1 . . . . Alert Level 1 | . 1 . . . . Recall Investigation 1 | . 1 . . . . Registered Components 1 | . 1 . . . . Zone Layout 2 | . 1 1 . . . Fabricator Hacks . | . . . . . . Repair Station Hacks . | . . . . . . Recycling Unit Hacks . | . . . . . . Scanalyzer . | . . . . . . Garrison Access Hacks . | . . . . . . Unauthorized Hacks 9 | . 8 1 . . . Terminals 9 | . 8 1 . . . Botnet 8 | . 7 1 . . . Operators 1 | . 1 . . . . Fabricators . | . . . . . . Repair Stations . | . . . . . . Recycling Units . | . . . . . . Scanalyzers . | . . . . . . Garrison Access . | . . . . . . Data Cores Recovered 1 | . 1 . . . . Used . | . . . . . . Hacking Detections 6 | . 6 . . . . Full Trace Events . | . . . . . . Feedback Events . | . . . . . . Feedback Blocked . | . . . . . . Robot Schematics Acquired . | . . . . . . Robots Built . | . . . . . . Authchips . | . . . . . . Time . | . . . . . . Total Robot Build Rating . | . . . . . . Part Schematics Acquired . | . . . . . . Parts Built . | . . . . . . Authchips . | . . . . . . Time . | . . . . . . Total Part Build Rating . | . . . . . . Part Studies Acquired . | . . . . . . Parts Repaired . | . . . . . . Time . | . . . . . . Parts Recycled . | . . . . . . Recycled Matter . | . . . . . . Retrieved Matter . | . . . . . . Retrieved Components . | . . . . . . Parts Scanalyzed . | . . . . . . Part Schematics Acquired . | . . . . . . Parts Damaged . | . . . . . . Bothacking | -11 -10 -10 -10 -9 -6 ------------ Run | Yrd Mat Min Sub Scr Fac Used RIF Installer . | . . . . . . Robots Hacked . | . . . . . . Non-combat . | . . . . . . Combat . | . . . . . . Robot Hacks Applied . | . . . . . . Relay Couplers Released . | . . . . . . Fabnet Peak Effective % . | . . . . . . Robots Rewired . | . . . . . . Allies Hacked . | . . . . . . Hacks Repelled . | . . . . . . Allies | -11 -10 -10 -10 -9 -6 -------- Run | Yrd Mat Min Sub Scr Fac Total Allies . | . . . . . . Largest Group . | . . . . . . Highest-Rated Group . | . . . . . . Highest-Rated Ally . | . . . . . . Total Orders . | . . . . . . Ally Attacks . | . . . . . . Total Damage . | . . . . . . Kills . | . . . . . . Allies Corrupted . | . . . . . . Allies Melted . | . . . . . . Intel | -11 -10 -10 -10 -9 -6 ------- Run | Yrd Mat Min Sub Scr Fac Active Infowar (turns) 431 | . . . . . 431 Sensors 430 | . . . . . 430 Cloaking 1 | . . . . . 1 Robot Analysis Total . | . . . . . . Derelict Logs Recovered 2 | . . . 1 1 . Drone Launches . | . . . . . . Drone Recoveries . | . . . . . . Exploration | -11 -10 -10 -10 -9 -6 ------------- Run | Yrd Mat Min Sub Scr Fac Turns Passed 6535 | 56 708 850 915 3465 541 Spaces Moved 3910 | 39 390 438 524 2222 297 Core 65 | 3 1 . . . 61 Treads 2528 | . . . 403 1891 234 Legs 984 | 36 389 438 121 . . Wheels 333 | . . . . 331 2 Hover . | . . . . . . Flight . | . . . . . . Fastest Speed 50 | 50 120 120 120 125 50 Average Speed 145 | 117 120 120 150 154 137 Slowest Speed 250 | 120 250 120 160 160 160 Overloaded Moves . | . . . . . . Propulsion Burnouts . | . . . . . . Robots Hopped . | . . . . . . Potential Cave-ins . | . . . . . . Cave-ins Triggered . | . . . . . . Exploration Rate (%) 47 | 3 76 76 31 93 8 Regions Visited 5 Branch Regions 3 Pre-discovered Areas 5 | . . . . 5 . Known Exits Taken . | . . . . . . Unknown Exits Taken 5 | 1 1 1 1 1 . Scrap Searched 9 | . . . 5 4 . Spaces Dug . | . . . . . . Terrain Destroyed 18 | . . . 14 . 4 Melee . | . . . . . . Projectile . | . . . . . . AOE 18 | . . . 14 . 4 Terrain Rammed . | . . . . . . Walls Destroyed . | . . . . . . Machines Disabled . | . . . . . . Actions | -11 -10 -10 -10 -9 -6 --------- Run | Yrd Mat Min Sub Scr Fac Total 4570 | 46 568 741 586 2251 378 Wait 422 | . 133 288 . . 1 Move 3905 | 38 389 437 523 2221 297 Hop . | . . . . . . Pick Up 44 | 2 8 2 8 14 10 Fast Attach 23 | 6 7 1 4 1 4 Attach 22 | . 1 . 1 1 19 Detach . | . . . . . . Swap 11 | . 1 . 3 4 3 Drop 35 | . 1 2 11 10 11 Fire 106 | . 28 11 36 . 31 Melee 2 | . . . . . 2 Ram . | . . . . . . Kick . | . . . . . . Crush . | . . . . . . Escape Stasis . | . . . . . . Rewire . | . . . . . . Trap . | . . . . . . Miscellaneous . | . . . . . . Route ------- -11/Scrapyard -10/Materials (discovered 4 exits: *Mat x2 / *Min x2) -10/Mines (discovered 3 exits: *Mat x2 / [*Sub]) -10/Subcaves -9/Scraptown (discovered 2 exits: [*Fac x2]) -6/Factory (discovered 3 exits: Fac x3) History --------- Turn | Location | Event 11 | -11/Scrapyard | Discovered new exit (range 15) 57 | -11/Scrapyard | Entered Materials 327 | -10/Materials | Build established: Mutant 375 | -10/Materials | Discovered new exit (range 16) 560 | -10/Materials | Discovered new exit (range 3) 758 | -10/Materials | Discovered new exit (range 7) 762 | -10/Materials | Discovered new exit (range 13) 765 | -10/Materials | Entered Mines 849 | -10/Mines | Discovered new exit (range 7) 1224 | -10/Mines | A weapon hastily lodged in a ceiling crevice suddenly fell to the ground 1338 | -10/Mines | Identified exit to Materials 1526 | -10/Mines | Discovered new exit (range 9) 1615 | -10/Mines | Entered Subcaves 1616 | -10/Subcaves | Approached by a straggling Scientist 1684 | -10/Subcaves | Core integrity fell below 50% 1942 | -10/Subcaves | Learned Materials emergency access door positions 2099 | -10/Subcaves | Build established: Derelict-Mutant 2114 | -10/Subcaves | Scientist uncovered a shortcut to Scraptown 2313 | -10/Subcaves | Core integrity fell below 20% 2530 | -10/Subcaves | Entered Scraptown 2658 | -9/Scraptown | Learned location of Extension (-4) 2722 | -9/Scraptown | Visited Cave Peace 2750 | -9/Scraptown | Visited CPS Storage 2759 | -9/Scraptown | Visited TADAMA 3209 | -9/Scraptown | Heard Great Nut preacher, LISTEN AND RECITE! 3316 | -9/Scraptown | Visited Symbiants 3452 | -9/Scraptown | Visited Cyclists 3481 | -9/Scraptown | Visited UFD Registry 3481 | -9/Scraptown | Registered with UFD as "Gundisc" 3511 | -9/Scraptown | Entered Cyclist Reading Room 3618 | -9/Scraptown | Scanned Subdweller tech in exchange for log data 3623 | -9/Scraptown | Learned Factory garrison access intel 3649 | -9/Scraptown | Discovered new exit (range 9) 3964 | -9/Scraptown | Visited DA-N13 Charitable Foundation 3970 | -9/Scraptown | Found DCF Scrap (29 items) 4041 | -9/Scraptown | Visited Scrapoid Pod Storage 4063 | -9/Scraptown | Visited Junk Repository 4154 | -9/Scraptown | Delivered Scrap Shield to a Scientist 4353 | -9/Scraptown | Visited Abandonware Association 4374 | -9/Scraptown | Learned abandonware demo "OVRCLOCK.EXE" 4377 | -9/Scraptown | Learned abandonware demo "HACKBUD.EXE" 4377 | -9/Scraptown | Learned abandonware demo "REVENGE.EXE" 4424 | -9/Scraptown | Visited Scrap Suit Storage 4457 | -9/Scraptown | Visited Research Penetration Think Tank 4485 | -9/Scraptown | Visited LU-1G1's Boring Crew 4582 | -9/Scraptown | Discovered new exit (range 3) 4699 | -9/Scraptown | Visited Derelict Rescue Squad 4709 | -9/Scraptown | Found DRS Beacon 4742 | -9/Scraptown | Visited Scrapoid Research Area 4778 | -9/Scraptown | Visited Cartography Club 4825 | -9/Scraptown | Found Surveybot 17 Chip 5845 | -9/Scraptown | Learned location of Proximity Caves (-4) 5845 | -9/Scraptown | Learned location of Cetus (-4) 5845 | -9/Scraptown | Learned 20 Factory zone layouts 5845 | -9/Scraptown | Learned 16 Factory zone layouts 5845 | -9/Scraptown | Learned 12 Research zone layouts 5845 | -9/Scraptown | Learned 8 Access zone layouts 5845 | -9/Scraptown | Learned 16 Upper Caves zone layouts 5845 | -9/Scraptown | Learned 24 Proximity Caves zone layouts 5845 | -9/Scraptown | Learned location of 2 exits from Upper Caves 5845 | -9/Scraptown | Learned location of 2 exits from Proximity Caves 5995 | -9/Scraptown | Entered Factory 5995 | -6/Factory | Evolved 8 slots: Propulsion x1, Utility x6, Weapon x1 5996 | -6/Factory | Identified exit to Factory 5998 | -6/Factory | Loaded intel: 4 garrison access locations 6499 | -6/Factory | Core integrity fell below 50% 6525 | -6/Factory | Core integrity fell below 20% 6536 | -6/Factory | Destroyed by S-27 Virus with Autogun Last Messages --------------- Grenade Launcher destroyed. Dropped Lrg. Storage Unit. U-05 Engineer lays Concrete. Wall collapses. U-05 Engineer lays Concrete. U-05 Engineer destroyed. U-05 Engineer builds a Wall. Slug penetrates Subcomponent Replicator. Mak. System Shield destroyed. Acquired Core Analyzer. Dropped Adv. Heat Sink. Dropped Lgt. Angular Momentum Engine. Acquired Cloaking Device. Core Analyzer destroyed. Slug penetrates Wall. Cloaking Device destroyed. Slug penetrates Construction Platform. Penetrated by Slug. Core Analyzer destroyed. Slug penetrates Wall. Map ----- +----------------------------------------------------+ | ???????????????????????????????????""G""???? | | ???????????????????????????????????????????? | | ???????????????????????????????????????????? | | ???????????????????????????????????????????? | | ???????????????????????????????????????????? | | ##+???????????????????????????????????????????? | | # ???????????????????????????????????????????? | | # "???????????????????????????????????????????? | | T # "???????????????????????????????????????????? | | # "???????????????????????????????????????????? | | " # ???????????????????????????????? ????????? | | " #+#???????????????????????????????? ??????? | | " ???????????????????????????????? #?????? | | ???????????????????????????????# T # + """" | | ???????????????????????????????# # # | | ???????????????????????????????# """ # # | | ???????????????????????????????# """ # # | | ???????????????????????????????# """ # ####### | | ???????????????????????????????# # #?????? | | ???????????????????????????????# """ + #?????? | | ?????????????????############### """ # #?????? | | ?????????????????# s ## """ # #?????? | | ?????????????????# """"s ## # #?????? | | ?????????????????# """" ####+### ####### | | ?????????????????# """" l # | | ?????????????????# """" @l # | | ?????????????????# """" + | | ?????????????????# """" g! ! # | | ?????????????????# """" ! ! # | | ?????????????????# * !! ### """""" """""" | | ?????????????????# ! #?# """""" """""" | | ?????????????????# h #?# """""" """""" | | ?????????????????# g #?# """""" """""" | | ?????????????????##########g###?# | | ????????????????????????###l##### | | ????????????????????? g ####### | | ??????????????????????????# #???######+# | | ??????????????????????????# #######/#####?# | | ?????? ####+###?????# ###* =% #?# ? " " | | ?????? #??# #???????# ## [!=! #?# " " " | | ?????? #??# #???????# ##*% " """ #?# " " " | | ?????? #### ######### ##!= "" """ #?#! " " " | | ?????? ## =""" """ #?# " " " | | ?????? ###= "" "" #?# " " " | | ?????? /!!"" "" #?# " " " | | ?????? # #?# " " " | | ?????? """ """ """ ######/##+#?# " " " | | ?????? """ """ """ #?# | | ??????""T"" """ """ """ # ##### #?# | | ??????""""" # ????# #####/##+# | +----------------------------------------------------+ Best States ------------- Heat Dissipation 56 Energy Generation 16 Energy Capacity 290 Matter Stores 300 Matter Capacity 300 Sight Range 16 Robot Scan Range 16 Terrain Scan Density 1210 Armor Coverage 400 Evasion (%) 55 Core Analysis 9 Recoil Reduction 3 Offensive Hacking 10 Defensive Hacking 23 Item Schematics ----------------- None Robot Schematics ------------------ None Fabricated ------------ Nothing Repaired ---------- Nothing Studied --------- None Alien Tech Used ----------------- None Achievements -------------- Bob, First Of His Name Ghost 'Em I Have A Map? Nice Directions, Buddy Challenges ------------ None Game ------ Seed DeliveryScrapoidFalx Manual? 0 Play Time 00:39:24 Cumulative 89.5 hours Start 2025.10.22 @ 22:04:13 End 2025.10.22 @ 22:43:30 Sessions 1 Manual Loads 0 Difficulty Rogue Special Mode None Game No. 100 Rogue 100 Adventurer 0 Explorer 0 Win Type - Total 1 Types 1/0/0/0/0/0/0/0/0/0 Lore% 69 Gallery% 53 Achievement% 31 Wizard Run 0 Options --------- Layout 1 ASCII 0 Keyboard 0 Movement Mouse Keybinds 0 Fullscreen 2 Font 24/Smallcaps Map View 50x35 Zoom Use 0% Tactical HUD 0 Map Filters NONE Filters NONE Steam 1 RUN: 7e344062-4c91-4345-b3da-9bea2b51354c